fUSD/lending_fUSD_20251220
["ID","MTS","AMOUNT","RATE_DAILY","PERIOD"]
[399252929,1766207448730,-157.0,0.00020594,2]
[399252930,1766207448740,-539.0,0.00020686,2]
[399252931,1766207448749,-441.0,0.00020686,2]
[399252932,1766207448759,-510.0,0.00020686,2]
[399252933,1766207448768,-866.0,0.00020686,2]
[399252934,1766207448778,-1199.0,0.00020686,2]
[399252935,1766207448787,-2000.0,0.000207,2]
[399252936,1766207448796,-261.0,0.00020718,2]
[399252937,1766207448805,-1000.0,0.00020795,2]
[399252938,1766207448815,-543.55341749,0.00020823,2]
[399252939,1766207448824,-454.51270306,0.00020823,2]
[399252940,1766207448833,-520.76159208,0.00020823,2]
[399252941,1766207448843,-878.07268644,0.00020823,2]
[399252942,1766207448852,-1219.03109611,0.00020823,2]
[399252943,1766207448862,-23376.65974029,0.00020861,2]
[399252944,1766207448871,-261.0,0.00020947,2]
[399252945,1766207448880,-151.96,0.00020995,2]
[399252946,1766207448890,-350.0,0.00021,2]
[399252947,1766207448899,-1000.0,0.00021015,2]
[399252948,1766207448909,-261.0,0.00021134,2]
[399252949,1766207448918,-261.0,0.00021214,2]
[399252950,1766207448927,-8626.9,0.00021394,2]
[399252951,1766207448936,-261.0,0.00021394,2]
[399252952,1766207448946,-2428.0,0.00021684,2]
[399252953,1766207448955,-6528.0,0.00021684,2]
[399252954,1766207448966,-3489.05782471,0.00021917,2]
[399252955,1766207448975,-5000.0,0.00021918,2]
[399252956,1766207448984,-154.0,0.00021918,2]
[399252957,1766207448993,-164.0,0.00021918,2]
[399252958,1766207449002,-154.0,0.00021918,2]
[399252959,1766207449011,-164.0,0.00021918,2]
[399252960,1766207449020,-154.0,0.00021918,2]
[399252961,1766207449029,-164.0,0.00021918,2]
[399252962,1766207449039,-154.0,0.00021918,2]
[399252963,1766207449048,-172.10107555,0.00021918,2]
[399252964,1766207449057,-154.0,0.00021918,2]
[399252965,1766207449067,-154.0,0.00021918,2]
[399252966,1766207449076,-154.0,0.00021918,2]
[399252967,1766207449086,-154.0,0.00021918,2]
[399252968,1766207449095,-219.9981724,0.00021918,2]
[399252969,1766207449105,-800.0,0.00022,8]
[399252970,1766207449114,-800.0,0.00022,8]
[399252971,1766207449123,-800.0,0.00022,8]
[399252972,1766207449132,-800.0,0.00022,8]
[399252973,1766207449142,-800.0,0.00022,8]
[399252974,1766207449151,-800.0,0.00022,8]
[399252975,1766207449160,-800.0,0.00022,8]
[399252976,1766207449170,-800.0,0.00022,8]
[399252977,1766207449179,-800.0,0.00022,8]
[399252978,1766207449188,-800.0,0.00022,8]
[399252979,1766207449198,-800.0,0.00022,8]
[399252980,1766207449207,-800.0,0.00022,8]
[399252981,1766207449216,-806.12303543,0.00022,8]
[399252982,1766207449472,-1801.01,0.00022,7]
[399252983,1766207449482,-150.0,0.000222,2]
[399252984,1766207449491,-150.0,0.000222,2]
[399252985,1766207449500,-150.0,0.000222,2]
[399252986,1766207449511,-1608.0,0.000222,2]
[399252987,1766207449520,-612.0,0.000222,2]
[399252988,1766207449529,-1326.0,0.000222,2]
[399252989,1766207449539,-160.47,0.00022498,2]
[399252990,1766207449548,-236.38,0.00022603,2]
[399252991,1766207449558,-160.47,0.0002286,2]
[399252992,1766207449567,-400.0,0.00023,2]
[399252993,1766207449576,-217.55,0.00023002,2]
[399252994,1766207449587,-160.47,0.00023003,2]
[399252995,1766207449596,-200.0,0.00023081,2]
[399252996,1766207449605,-207.4,0.00023081,2]
[399252997,1766207449615,-215.0738,0.00023081,2]
[399252998,1766207449624,-223.0315306,0.00023081,2]
[399252999,1766207449633,-231.28369723,0.00023081,2]
[399253000,1766207449642,-239.84119403,0.00023081,2]
[399253001,1766207449651,-248.71531821,0.00023081,2]
[399253002,1766207449661,-257.91778498,0.00023081,2]
[399253003,1766207449671,-267.46074303,0.00023081,2]
[399253004,1766207449680,-277.35679052,0.00023081,2]
[399253005,1766207449689,-592.95411986,0.00023081,2]
[399253006,1766207449698,-153.78508436,0.00023081,2]
[399253007,1766207449707,-2000.0,0.00023081,2]
[399253008,1766207449716,-2000.0,0.00023081,2]
[399253009,1766207449726,-9552.16786547,0.00023081,2]
[399253010,1766207449735,-5000.0,0.00023081,2]
[399253011,1766207449744,-2000.0,0.00023081,2]
[399253012,1766207449753,-5000.0,0.00023081,2]
[399253013,1766207449762,-2000.0,0.00023081,2]
[399253014,1766207449772,-5000.0,0.00023081,2]
[399253015,1766207449782,-2000.0,0.00023081,2]
[399253016,1766207449791,-300.0,0.00023081,2]
[399253017,1766207449800,-5000.0,0.00023081,2]
[399253018,1766207449809,-2000.0,0.00023081,2]
[399253019,1766207449818,-5000.0,0.00023081,2]
[399253020,1766207449827,-2000.0,0.00023081,2]
[399253021,1766207449836,-5000.0,0.00023081,2]
[399253022,1766207449846,-2000.0,0.00023081,2]
[399253023,1766207449855,-5000.0,0.00023081,2]
[399253024,1766207449864,-2000.0,0.00023081,2]
[399253025,1766207449873,-5000.0,0.00023081,2]
[399253026,1766207449883,-2000.0,0.00023081,2]
[399253027,1766207449891,-5000.0,0.00023081,2]
[399253028,1766207449901,-5000.0,0.00023081,2]
[399253029,1766207449910,-2000.0,0.00023081,2]
[399253030,1766207449919,-1000.0,0.00023081,2]
[399253031,1766207449928,-5000.0,0.00023081,2]
[399253032,1766207449937,-1000.0,0.00023081,2]
[399253033,1766207449947,-1000.0,0.00023081,2]
[399253034,1766207449955,-5000.0,0.00023081,2]
[399253035,1766207449968,-574.12855637,0.00023081,2]
[399253036,1766207449977,-1000.0,0.00023081,2]
[399253037,1766207449987,-5000.0,0.00023081,2]
[399253038,1766207449995,-1000.0,0.00023081,2]
[399253039,1766207450005,-5000.0,0.00023081,2]
[399253040,1766207450014,-1000.0,0.00023081,2]
[399253041,1766207450024,-5000.0,0.00023081,2]
[399253042,1766207450033,-1000.0,0.00023081,2]
[399253043,1766207450045,-5000.0,0.00023081,2]
[399253044,1766207450055,-5000.0,0.00023081,2]
[399253045,1766207450064,-1000.0,0.00023081,2]
[399253046,1766207450073,-5000.0,0.00023081,2]
[399253047,1766207450082,-1000.0,0.00023081,2]
[399253048,1766207450091,-5000.0,0.00023081,2]
[399253049,1766207450101,-500.0,0.00023081,2]
[399253050,1766207450110,-1000.0,0.00023081,2]
[399253051,1766207450120,-5000.0,0.00023081,2]
[399253052,1766207450129,-500.0,0.00023081,2]
[399253053,1766207450138,-5000.0,0.00023081,2]
[399253054,1766207450148,-1000.0,0.00023081,2]
[399253055,1766207450157,-500.0,0.00023081,2]
[399253056,1766207450167,-5000.0,0.00023081,2]
[399253057,1766207450176,-500.0,0.00023081,2]
[399253058,1766207450185,-151.49542101,0.00023081,2]
[399253059,1766207450195,-500.0,0.00023081,2]
[399253060,1766207450204,-250.0,0.00023081,2]
[399253061,1766207450213,-500.0,0.00023081,2]
[399253062,1766207450222,-1199.0,0.00023081,2]
[399253063,1766207450232,-250.0,0.00023081,2]
[399253064,1766207450241,-500.0,0.00023081,2]
[399253065,1766207450251,-173.95994129,0.00023081,2]
[399253066,1766207450260,-500.0,0.00023081,2]
[399253067,1766207450269,-151.0,0.00023081,2]
[399253068,1766207450279,-500.0,0.00023081,2]
[399253069,1766207450289,-1000.0,0.00023081,2]
[399253070,1766207450298,-500.0,0.00023081,2]
[399253071,1766207450307,-1000.0,0.00023081,2]
[399253072,1766207450316,-1000.0,0.00023081,2]
[399253073,1766207450326,-500.0,0.00023081,2]
[399253074,1766207450336,-1000.0,0.00023081,2]
[399253075,1766207450345,-1000.0,0.00023081,2]
[399253076,1766207450354,-174.94180424,0.00023081,2]
[399253077,1766207450364,-1000.0,0.00023081,2]
[399253078,1766207450373,-220.0,0.00023081,2]
[399253079,1766207450382,-1000.0,0.00023081,2]
[399253080,1766207450391,-220.0,0.00023081,2]
[399253081,1766207450401,-1000.0,0.00023081,2]
[399253082,1766207450410,-220.0,0.00023081,2]
[399253083,1766207450419,-1000.0,0.00023081,2]
[399253084,1766207450428,-1000.0,0.00023081,2]
[399253085,1766207450438,-1000.0,0.00023081,2]
[399253086,1766207450447,-1000.0,0.00023081,2]
[399253087,1766207450456,-220.0,0.00023081,2]
[399253088,1766207450467,-1000.0,0.00023081,2]
[399253089,1766207450476,-1000.0,0.00023081,2]
[399253090,1766207450485,-220.0,0.00023081,2]
[399253091,1766207450495,-1000.0,0.00023081,2]
[399253092,1766207450504,-500.0,0.00023081,2]
[399253093,1766207450513,-1000.0,0.00023081,2]
[399253094,1766207450523,-220.0,0.00023081,2]
[399253095,1766207450532,-1000.0,0.00023081,2]
[399253096,1766207450541,-500.0,0.00023081,2]
[399253097,1766207450550,-252.4499311,0.00023081,2]
[399253098,1766207450560,-1000.0,0.00023081,2]
[399253099,1766207450568,-1000.0,0.00023081,2]
[399253100,1766207450578,-500.0,0.00023081,2]
[399253101,1766207450586,-1000.0,0.00023081,2]
[399253102,1766207450595,-500.0,0.00023081,2]
[399253103,1766207450604,-686.66093114,0.00023081,2]
[399253104,1766207450613,-500.0,0.00023081,2]
[399253105,1766207450622,-620.0,0.00023081,2]
[399253106,1766207450631,-500.0,0.00023081,2]
[399253107,1766207450640,-500.0,0.00023081,2]
[399253108,1766207450650,-500.0,0.00023081,2]
[399253109,1766207450659,-500.0,0.00023081,2]
[399253110,1766207450668,-500.0,0.00023081,2]
[399253111,1766207450677,-500.0,0.00023081,2]
[399253112,1766207450686,-500.0,0.00023081,2]
[399253113,1766207450695,-500.0,0.00023081,2]
[399253114,1766207450704,-500.0,0.00023081,2]
[399253115,1766207450713,-500.0,0.00023081,2]
[399253116,1766207450722,-578.20924308,0.00023081,2]
[399253117,1766207450731,-500.0,0.00023081,2]
[399253118,1766207450740,-500.0,0.00023081,2]
[399253119,1766207450749,-500.0,0.00023081,2]
[399253120,1766207450760,-500.0,0.00023081,2]
[399253121,1766207450769,-500.0,0.00023081,2]
[399253122,1766207450778,-500.0,0.00023081,2]
[399253123,1766207450787,-500.0,0.00023081,2]
[399253124,1766207450796,-151.0,0.00023081,2]
[399253125,1766207450806,-9905.5980765,0.00023136,2]
[399253126,1766207450815,-320.93667428,0.00023151,2]
[399253127,1766207450826,-296.4,0.00023185,2]
[399253128,1766207450835,-851.5140941,0.00023191,2]
[399253129,1766207450844,-8626.9,0.00023351,2]
[399253130,1766207450853,-595.37131296,0.00023629,2]
[399253131,1766207450862,-151.0,0.00023629,2]
[399253132,1766207450871,-1037.0,0.00023629,2]
[399253133,1766207450880,-23376.65974029,0.00023868,2]
[399253134,1766207450889,-500.0,0.00023973,2]
[399253135,1766207450899,-3010.27633262,0.00024,3]
[399253136,1766207450908,-617.40005154,0.00024177,2]
[399253137,1766207450918,-1075.369,0.00024177,2]
[399253138,1766207450927,-151.96,0.00024182,2]
[399253139,1766207450936,-14642.0,0.00024233,2]
[399253140,1766207450944,-2000.0,0.000244,2]
[399253141,1766207450954,-311.1,0.0002445,2]
[399253142,1766207450963,-153.69901864,0.0002445,2]
[399253143,1766207450971,-157.0,0.00024658,2]
[399253144,1766207450980,-157.0,0.00024658,2]
[399253145,1766207450990,-157.0,0.00024658,2]
[399253146,1766207450999,-156.28154836,0.00024658,2]
[399253147,1766207451008,-1000.0,0.00024658,2]
[399253148,1766207451017,-2428.0,0.00024684,2]
[399253149,1766207451027,-654.658,0.00024684,2]
[399253150,1766207451036,-640.24385345,0.00024725,2]
[399253151,1766207451045,-151.0,0.00024797,7]
[399253152,1766207451054,-206002.640798,0.000248,3]
[399253153,1766207451063,-1801.01,0.000249,7]
[399253154,1766207451072,-450.0,0.00025,2]
[399253155,1766207451081,-663.93287602,0.00025273,2]
[399253156,1766207451090,-8626.9,0.00025307,2]
[399253157,1766207451099,-186.38723324,0.00025396,2]
[399253158,1766207451109,-322.6107,0.00025819,2]
[399253159,1766207451118,-1199.0,0.0002582,2]
[399253160,1766207451127,-642.94,0.0002582,2]
[399253161,1766207451136,-688.49839244,0.00025821,2]
[399253162,1766207451145,-713.97283296,0.00026369,2]
[399253163,1766207451154,-894.54,0.00026676,2]
[399253164,1766207451163,-526.37987937,0.000268,2]
[399253165,1766207451172,-23376.65974029,0.00026874,2]
[399253166,1766207451181,-200.0,0.000269,2]
[399253167,1766207451190,-301.0,0.000269,2]
[399253168,1766207451198,-976.0,0.000269,2]
[399253169,1766207451208,-777.0,0.000269,2]
[399253170,1766207451218,-740.38982778,0.00026917,2]
[399253171,1766207451227,-3119.300231,0.00027,2]
[399253172,1766207451236,-334.5472959,0.00027188,2]
[399253173,1766207451245,-8626.9,0.00027263,2]
[399253174,1766207451254,-150.0,0.00027369,2]
[399253175,1766207451263,-303.4,0.00027397,7]
[399253176,1766207451272,-430.2,0.00027397,4]
[399253177,1766207451281,-213.0,0.00027397,7]
[399253178,1766207451290,-790.0,0.00027397,7]
[399253179,1766207451299,-659.0,0.00027397,7]
[399253180,1766207451308,-300.0,0.00027397,2]
[399253181,1766207451318,-1438.45,0.00027397,2]
[399253182,1766207451327,-500.0,0.00027397,14]
[399253183,1766207451337,-500.0,0.00027397,5]
[399253184,1766207451346,-767.7842514,0.00027465,2]
[399253185,1766207451356,-16455.85,0.00027671,2]
[399253186,1766207451365,-2428.0,0.00027684,2]
[399253187,1766207451374,-1801.01,0.000277,7]
[399253188,1766207451383,-200.0,0.00027776,2]
[399253189,1766207451393,-153.0052049,0.00027853,2]
[399253190,1766207451402,-1229.89607376,0.000279,2]
[399253191,1766207451411,-150.34870908,0.000279,2]
[399253192,1766207451421,-253.27,0.00027965,2]
[399253193,1766207451430,-796.19226871,0.00028013,2]
[399253194,1766207451440,-2000.0,0.000281,2]
[399253195,1766207451450,-1000.0,0.00028219,5]
[399253196,1766207451459,-180.25022088,0.00028461,2]
[399253197,1766207451468,-167.79,0.00028493,2]
[399253198,1766207451478,-346.92554585,0.00028557,2]
[399253199,1766207451488,-1199.0,0.00028559,2]
[399253200,1766207451497,-666.72878,0.00028559,2]
[399253201,1766207451506,-825.65138265,0.00028561,2]
[399253202,1766207451516,-1500.0,0.00029041,5]
[399253203,1766207451525,-8626.9,0.00029219,2]
[399253204,1766207451534,-526.37987933,0.0002922,2]
[399253205,1766207451544,-1786.96684625,0.00029863,5]
[399253206,1766207451554,-23376.65974029,0.00029881,2]
[399253207,1766207451565,-359.76179104,0.00029926,2]
[399253208,1766207451574,-1000.0,0.0003,120]
[399253209,1766207451583,-1801.01,0.0003,7]
[399253210,1766207451593,-152.0,0.00030275,3]
[399253211,1766207451602,-476.08,0.00030684,2]
[399253212,1766207451611,-8626.9,0.00031175,2]
[399253213,1766207451620,-168.88862996,0.00031295,2]
[399253214,1766207451629,-1199.0,0.00031298,2]
[399253215,1766207451639,-691.39774486,0.00031298,2]
[399253216,1766207451648,-152.0,0.00031376,4]
[399253217,1766207451657,-500.0,0.00031479,2]
[399253218,1766207451666,-155.40843706,0.00031513,120]
[399253219,1766207451675,-2000.0,0.000318,2]
[399253220,1766207451684,-1000.0,0.000318,2]
[399253221,1766207451693,-152.0,0.00032478,5]
[399253222,1766207451703,-150.0,0.00032877,2]
[399253223,1766207451759,-23376.65974029,0.00032887,2]
[399253224,1766207451768,-9212.1,0.000329,2]
[399253225,1766207451777,-552.40228,0.00033,14]
[399253226,1766207451787,-535.36428,0.00033,8]
[399253227,1766207451796,-1009.0,0.00033,7]
[399253228,1766207451806,-150.0,0.00033014,2]
[399253229,1766207451816,-8626.9,0.00033131,3]
[399253230,1766207451825,-185.57141804,0.00033151,2]
[399253231,1766207451835,-894.54,0.00033165,2]
[399253232,1766207451848,-152.0,0.0003358,6]
[399253233,1766207451861,-1199.0,0.00034037,2]
[399253234,1766207451870,-198.08696847,0.00034037,2]
[399253235,1766207451879,-152.0,0.00034681,7]
[399253236,1766207451888,-9212.1,0.000347,2]
[399253237,1766207451897,-150.0,0.00035088,7]
[399253238,1766207451906,-157.75435091,0.00035088,7]
[399253239,1766207451914,-8626.9,0.00035088,4]
[399253240,1766207451923,-1000.0,0.000354,7]
[399253241,1766207451932,-2000.0,0.000355,2]
[399253242,1766207451941,-151.59,0.00035616,2]
[399253243,1766207451951,-455.1,0.00035616,29]
[399253244,1766207451960,-500.0,0.00035616,7]
[399253245,1766207451974,-500.0,0.00035616,7]
[399253246,1766207451984,-500.0,0.00035616,7]
[399253247,1766207451995,-500.0,0.00035616,7]
[399253248,1766207452004,-500.0,0.00035616,7]
[399253249,1766207452015,-500.0,0.00035616,7]
[399253250,1766207452025,-500.0,0.00035616,7]
[399253251,1766207452036,-213.7310198,0.00035616,7]
[399253252,1766207452047,-645.3,0.00035616,23]
[399253253,1766207452056,-890.72,0.00035616,5]
[399253254,1766207452065,-629.91,0.00035616,30]
[399253255,1766207452075,-500.0,0.00035616,5]
[399253256,1766207452084,-550.68557476,0.00035617,5]
[399253257,1766207452093,-874.8,0.00035617,5]
[399253258,1766207452103,-886.03,0.0003562,5]
[399253259,1766207452112,-875.36,0.00035626,5]
[399253260,1766207452121,-862.98,0.00035643,5]
[399253261,1766207452131,-500.0,0.00035671,2]
[399253262,1766207452140,-861.57,0.00035688,5]
[399253263,1766207452149,-152.0,0.00035783,8]
[399253264,1766207452159,-862.83,0.0003581,5]
[399253265,1766207452168,-150.0,0.00035867,7]
[399253266,1766207452177,-1000.0,0.0003589,5]
[399253267,1766207452186,-23376.65974029,0.00035894,2]
[399253268,1766207452195,-19514.97043698,0.00035954,120]
[399253269,1766207452204,-887.42,0.00036134,5]
[399253270,1766207452214,-600.0,0.00036164,30]
[399253271,1766207452223,-639.81645564,0.00036164,5]
[399253272,1766207452232,-9212.1,0.000362,2]
[399253273,1766207452242,-421.022,0.00036381,45]
[399253274,1766207452251,-6990.096,0.00036381,45]
[399253275,1766207452260,-150.0,0.00036647,7]
[399253276,1766207452269,-600.0,0.00036712,30]
[399253277,1766207452278,-1199.0,0.00036776,2]
[399253278,1766207452288,-200.0,0.00036822,30]
[399253279,1766207452297,-1466.67,0.00036849,30]
[399253280,1766207452307,-1218.93,0.00036849,30]
[399253281,1766207452316,-1543.43,0.00036849,30]
[399253282,1766207452325,-1218.93,0.00036849,30]
[399253283,1766207452334,-1218.93,0.00036849,30]
[399253284,1766207452343,-2194.51,0.00036849,30]
[399253285,1766207452353,-152.0,0.00036885,9]
[399253286,1766207452363,-500.60723238,0.00036986,2]
[399253287,1766207452374,-1218.55,0.00037027,30]
[399253288,1766207452383,-1218.93,0.00037027,30]
[399253289,1766207452393,-8626.9,0.00037044,5]
[399253290,1766207452403,-1218.55,0.00037082,30]
[399253291,1766207452412,-182.06554206,0.000372,120]
[399253292,1766207452421,-600.0,0.0003726,30]
[399253293,1766207452431,-9212.1,0.000373,2]
[399253294,1766207452440,-500.0,0.00037356,14]
[399253295,1766207452451,-600.0,0.00037356,14]
[399253296,1766207452460,-500.0,0.00037356,14]
[399253297,1766207452472,-150.0,0.00037427,7]
[399253298,1766207452482,-1000.0,0.000378,7]
[399253299,1766207452494,-600.0,0.00037808,30]
[399253300,1766207452512,-17963.27462831,0.0003783,2]
[399253301,1766207452523,-152.0,0.00037986,10]
[399253302,1766207452533,-1000.0,0.00038,120]
[399253303,1766207452542,-500.0,0.00038,30]
[399253304,1766207452551,-500.0,0.00038178,14]
[399253305,1766207452560,-600.0,0.00038178,14]
[399253306,1766207452570,-1801.01,0.000382,14]
[399253307,1766207452579,-150.0,0.00038207,7]
[399253308,1766207452589,-1757.65,0.00038356,120]
[399253309,1766207452598,-600.0,0.00038356,30]
[399253310,1766207452608,-300.0,0.00038356,120]
[399253311,1766207452617,-300.0,0.00038356,120]
[399253312,1766207452626,-300.0,0.00038356,120]
[399253313,1766207452636,-300.0,0.00038356,120]
[399253314,1766207452645,-300.0,0.00038356,120]
[399253315,1766207452653,-300.0,0.00038356,120]
[399253316,1766207452663,-300.0,0.00038356,120]
[399253317,1766207452672,-300.0,0.00038356,120]
[399253318,1766207452681,-1009.72469334,0.000385,120]
[399253319,1766207452690,-794.42731089,0.00038595,2]
[399253320,1766207452699,-485.91781903,0.00038595,2]
[399253321,1766207452708,-809.42037074,0.00038595,2]
[399253322,1766207452717,-302.65974983,0.00038595,2]
[399253323,1766207452727,-300.73760877,0.00038595,2]
[399253324,1766207452736,-303.70558288,0.00038595,2]
[399253325,1766207452746,-300.0,0.00038595,2]
[399253326,1766207452755,-301.60871864,0.00038595,2]
[399253327,1766207452764,-367.23919955,0.00038595,2]
[399253328,1766207452774,-300.0,0.00038595,2]
[399253329,1766207452783,-300.76704864,0.00038595,2]
[399253330,1766207452792,-302.91346157,0.00038595,2]
[399253331,1766207452801,-300.79738084,0.00038595,2]
[399253332,1766207452810,-300.72125474,0.00038595,2]
[399253333,1766207452819,-301.0140741,0.00038595,2]
[399253334,1766207452828,-300.826383,0.00038595,2]
[399253335,1766207452838,-313.88048376,0.00038595,2]
[399253336,1766207452847,-594.25824151,0.00038595,2]
[399253337,1766207452856,-363.48275521,0.00038595,2]
[399253338,1766207452865,-300.0,0.00038595,2]
[399253339,1766207452874,-300.0,0.00038595,2]
[399253340,1766207452883,-300.0,0.00038595,2]
[399253341,1766207452893,-498.47094145,0.00038595,2]
[399253342,1766207452902,-302.53170336,0.00038595,2]
[399253343,1766207452912,-576.26026987,0.00038595,2]
[399253344,1766207452921,-302.65974983,0.00038595,2]
[399253345,1766207452931,-300.0,0.00038595,2]
[399253346,1766207452940,-303.70558288,0.00038595,2]
[399253347,1766207452949,-300.0,0.00038595,2]
[399253348,1766207452959,-300.0,0.00038595,2]
[399253349,1766207452974,-367.23919955,0.00038595,2]
[399253350,1766207452983,-300.0,0.00038595,2]
[399253351,1766207452993,-300.0,0.00038595,2]
[399253352,1766207453002,-302.91346157,0.00038595,2]
[399253353,1766207453011,-300.0,0.00038595,2]
[399253354,1766207453021,-300.0,0.00038595,2]
[399253355,1766207453030,-510.18573231,0.00038595,2]
[399253356,1766207453039,-300.0,0.00038595,2]
[399253357,1766207453049,-300.0,0.00038595,2]
[399253358,1766207453058,-300.0,0.00038595,2]
[399253359,1766207453067,-594.25824151,0.00038595,2]
[399253360,1766207453077,-363.48275521,0.00038595,2]
[399253361,1766207453087,-300.0,0.00038595,2]
[399253362,1766207453096,-300.0,0.00038595,2]
[399253363,1766207453105,-300.0,0.00038595,2]
[399253364,1766207453114,-300.0,0.00038595,2]
[399253365,1766207453124,-300.0,0.00038595,2]
[399253366,1766207453134,-300.0,0.00038595,2]
[399253367,1766207453144,-302.53170336,0.00038595,2]
[399253368,1766207453154,-300.0,0.00038595,2]
[399253369,1766207453164,-576.26026987,0.00038595,2]
[399253370,1766207453174,-302.65974983,0.00038595,2]
[399253371,1766207453184,-300.0,0.00038595,2]
[399253372,1766207453194,-303.70558288,0.00038595,2]
[399253373,1766207453204,-300.0,0.00038595,2]
[399253374,1766207453214,-300.0,0.00038595,2]
[399253375,1766207453225,-367.23919955,0.00038595,2]
[399253376,1766207453234,-300.0,0.00038595,2]
[399253377,1766207453244,-300.0,0.00038595,2]
[399253378,1766207453254,-302.91346157,0.00038595,2]
[399253379,1766207453264,-300.0,0.00038595,2]
[399253380,1766207453274,-300.0,0.00038595,2]
[399253381,1766207453283,-510.18573231,0.00038595,2]
[399253382,1766207453293,-317.06922871,0.00038595,2]
[399253383,1766207453302,-300.0,0.00038595,2]
[399253384,1766207453312,-300.0,0.00038595,2]
[399253385,1766207453322,-594.25824151,0.00038595,2]
[399253386,1766207453332,-363.48275521,0.00038595,2]
[399253387,1766207453341,-300.0,0.00038595,2]
[399253388,1766207453351,-300.0,0.00038595,2]
[399253389,1766207453361,-300.0,0.00038595,2]
[399253390,1766207453370,-300.0,0.00038595,2]
[399253391,1766207453380,-300.0,0.00038595,2]
[399253392,1766207453390,-300.0,0.00038595,2]
[399253393,1766207453399,-302.53170336,0.00038595,2]
[399253394,1766207453408,-300.0,0.00038595,2]
[399253395,1766207453418,-576.26026987,0.00038595,2]
[399253396,1766207453428,-302.65974983,0.00038595,2]
[399253397,1766207453438,-300.0,0.00038595,2]
[399253398,1766207453447,-303.70558288,0.00038595,2]
[399253399,1766207453456,-300.0,0.00038595,2]
[399253400,1766207453466,-300.0,0.00038595,2]
[399253401,1766207453475,-367.23919955,0.00038595,2]
[399253402,1766207453484,-300.0,0.00038595,2]
[399253403,1766207453493,-300.0,0.00038595,2]
[399253404,1766207453503,-302.91346157,0.00038595,2]
[399253405,1766207453513,-300.0,0.00038595,2]
[399253406,1766207453522,-300.0,0.00038595,2]
[399253407,1766207453532,-510.18573231,0.00038595,2]
[399253408,1766207453541,-300.0,0.00038595,2]
[399253409,1766207453551,-300.0,0.00038595,2]
[399253410,1766207453560,-594.25824151,0.00038595,2]
[399253411,1766207453569,-363.48275521,0.00038595,2]
[399253412,1766207453578,-300.0,0.00038595,2]
[399253413,1766207453587,-300.0,0.00038595,2]
[399253414,1766207453596,-300.0,0.00038595,2]
[399253415,1766207453605,-300.0,0.00038595,2]
[399253416,1766207453614,-300.0,0.00038595,2]
[399253417,1766207453624,-300.0,0.00038595,2]
[399253418,1766207453634,-302.53170336,0.00038595,2]
[399253419,1766207453643,-300.0,0.00038595,2]
[399253420,1766207453651,-575.85369779,0.00038595,2]
[399253421,1766207453661,-302.65974983,0.00038595,2]
[399253422,1766207453670,-300.0,0.00038595,2]
[399253423,1766207453680,-303.70558288,0.00038595,2]
[399253424,1766207453689,-300.0,0.00038595,2]
[399253425,1766207453699,-300.0,0.00038595,2]
[399253426,1766207453707,-367.23919955,0.00038595,2]
[399253427,1766207453716,-314.13585639,0.00038595,2]
[399253428,1766207453726,-300.0,0.00038595,2]